bitfinex/quotes_ETHUSD_20251024
["timestamp","ask_amount","ask_price","bid_price","bid_amount"]
[1761291511083,4.18995124,3960.5,3960.4,3.303]
[1761291511270,3.65173362,3960.5,3960.4,3.303]
[1761291511473,4.19002247,3960.5,3960.4,3.303]
[1761291511778,4.19102247,3960.5,3960.4,3.31]
[1761291513054,4.19102247,3960.5,3960.4,3.308]
[1761291513581,6.41908354,3960.5,3960.4,3.308]
[1761291513883,5.74622247,3960.5,3960.4,3.308]
[1761291514259,5.74622247,3960.5,3960.4,0.002]
[1761291514901,5.74622247,3960.5,3960.4,0.532]
[1761291515085,5.74622247,3960.5,3960.4,0.002]
[1761291515288,6.25310247,3960.5,3960.4,0.002]
[1761291515764,7.14920498,3960.5,3960.4,0.002]
[1761291516169,6.25310247,3960.5,3960.4,0.002]
[1761291516569,7.14920498,3960.5,3960.4,0.002]
[1761291517300,6.25310247,3960.5,3960.4,0.002]
[1761291517998,5.74622247,3960.5,3960.4,0.002]
[1761291519296,7.14920498,3960.5,3960.4,0.002]
[1761291520172,7.5962108,3960.5,3960.4,0.002]
[1761291520373,2.52613898,3958.7,3957.9,0.1639]
[1761291520569,2.52596825,3958.9,3958.0,3.315]
[1761291520796,0.1264,3958.1,3958.0,3.315]
[1761291521076,0.1264,3958.1,3957.9,2.6904747]
[1761291521293,0.6905,3958.8,3958.0,3.314]
[1761291521498,3.56132587,3958.7,3957.5,2.52682669]
[1761291521803,2.52640842,3958.2,3957.2,4.37002122]
[1761291522108,0.25264084,3958.1,3957.3,5.84397301]
[1761291522307,2.52636013,3958.3,3957.4,2.52689784]
[1761291522509,2.52636013,3958.3,3957.1,2.9951949]
[1761291522510,2.52636013,3958.3,3957.5,3.316]
[1761291523007,2.52636013,3958.3,3957.0,0.1896]
[1761291523008,0.6905,3958.2,3957.0,0.1896]
[1761291523208,2.98748056,3958.1,3957.6,3.316]
[1761291523408,0.461,3958.1,3957.6,3.316]
[1761291523619,0.461,3958.1,3957.0,0.1896]
[1761291523620,2.52659238,3957.9,3957.0,0.1896]
[1761291523786,2.52659238,3957.9,3957.1,3.324]
[1761291523986,0.461,3957.8,3957.1,3.324]
[1761291524302,1.03486466,3957.8,3957.0,0.1896]
[1761291524497,0.461,3957.8,3957.1,5.85007864]
[1761291524692,0.22457,3958.0,3957.2,2.52702599]
[1761291525102,3.21215787,3958.0,3957.1,5.85009246]
[1761291525285,0.2295,3958.2,3957.4,2.52686029]
[1761291525679,0.66527009,3958.2,3957.5,3.322]
[1761291525892,0.20427009,3958.2,3957.6,2.52677928]
[1761291526092,0.461,3958.4,3957.5,5.84883593]
[1761291526300,0.9726543,3958.4,3957.2,0.30841851]
[1761291526492,0.9726543,3958.4,3957.0,0.1896]
[1761291526493,0.36000521,3958.4,3957.6,3.325]
[1761291526713,0.36000521,3958.4,3957.7,2.354]
[1761291526901,0.36000521,3958.4,3957.8,2.52660706]
[1761291527511,0.2295,3958.8,3957.7,2.354]
[1761291527713,0.2295,3958.8,3957.8,0.7035]
[1761291527911,0.2295,3958.8,3957.9,2.52659238]
[1761291528082,0.2295,3958.8,3958.0,2.52652268]
[1761291528287,0.2295,3958.8,3958.3,2.52632846]
[1761291528593,0.2295,3958.8,3958.4,3.328]
[1761291529010,0.2295,3958.8,3958.5,2.52619752]
[1761291529314,0.2295,3958.8,3958.6,3.327]
[1761291529515,0.2295,3958.8,3958.7,3.327]
[1761291529890,0.5389,3959.0,3958.7,3.327]
[1761291530297,0.2295,3959.0,3958.7,3.327]
[1761291530989,0.2295,3959.0,3958.5,2.52618626]
[1761291531184,0.2295,3959.0,3958.6,3.328]
[1761291531616,0.1264,3958.7,3958.6,3.328]
[1761291532293,0.1264,3958.7,3958.6,5.8541456]
[1761291532891,0.2295,3959.3,3958.9,2.52593453]
[1761291533119,0.1264,3959.0,3958.9,2.52593453]
[1761291533421,0.1264,3959.0,3958.9,2.85879665]
[1761291533626,0.1264,3959.0,3958.9,3.32689665]
[1761291533822,0.1264,3959.0,3958.9,3.68528975]
[1761291535629,2.52536553,3959.9,3958.9,3.6833931]
[1761291535834,0.4572,3959.8,3958.9,3.325]
[1761291536030,0.4572,3959.8,3959.1,2.52581375]
[1761291536227,0.4572,3959.8,3959.2,2.52575827]
[1761291536630,0.4572,3959.8,3959.0,0.4681]
[1761291536927,0.6867,3960.0,3959.3,2.52566359]
[1761291537160,0.6867,3960.0,3959.4,3.323]
[1761291537313,0.4572,3959.9,3959.5,3.323]
[1761291537713,0.4572,3959.9,3958.9,3.321]
[1761291537714,8.62741759,3959.8,3958.9,3.321]
[1761291537947,0.50688,3959.6,3959.0,3.323]
[1761291538144,2.52577214,3959.2,3958.0,2.52651869]
[1761291538343,2.9830468,3959.1,3958.1,3.323]
[1761291538546,2.52589102,3959.0,3958.1,3.323]
[1761291538767,3.212664,3958.9,3958.2,3.322]
[1761291538969,0.80184879,3958.9,3958.3,3.322]
[1761291539131,0.4572,3959.4,3958.5,2.52617237]
[1761291539450,0.99374888,3959.4,3958.6,2.52612947]
[1761291539752,0.4572,3959.4,3958.7,2.52603244]
[1761291539926,1.5552,3959.6,3958.8,2.52601735]
[1761291540132,1.96325799,3959.6,3958.9,3.326]
[1761291540320,0.53693472,3959.5,3958.9,3.326]
[1761291540517,2.09213472,3959.5,3958.9,3.326]
[1761291540722,1.5552,3959.5,3958.9,3.326]
[1761291540922,0.86525799,3959.6,3958.9,5.85193315]
[1761291541252,0.53693483,3959.5,3958.9,5.85193315]
[1761291541950,2.0124,3959.6,3958.9,5.85193315]
[1761291542157,0.53715988,3959.5,3958.9,5.85193315]
[1761291542344,0.53715988,3959.5,3958.1,0.2208]
[1761291542662,2.98282855,3959.5,3958.6,2.52613288]
[1761291542818,0.55082731,3959.4,3958.4,2.52622664]
[1761291543022,2.5257115,3959.3,3958.5,5.84820869]
[1761291543423,3.53367288,3959.4,3958.6,2.52614184]
[1761291543658,0.4572,3959.3,3958.6,2.52614184]
[1761291543859,0.4572,3959.3,3958.7,3.322]
[1761291544160,0.35336729,3959.2,3958.7,3.322]
[1761291544362,0.4572,3959.3,3958.7,5.84805182]
[1761291544539,0.99482841,3959.3,3958.7,5.84805182]
[1761291544760,0.99482841,3959.3,3958.7,3.322]
[1761291545162,0.99482841,3959.3,3958.7,5.84808077]
[1761291545659,0.1264,3958.8,3958.7,5.84808077]
[1761291545867,0.1264,3958.8,3958.6,2.52613642]
[1761291546062,0.99482841,3959.3,3958.7,5.84607809]
[1761291546260,1.40195791,3959.3,3958.7,5.84607809]
[1761291546460,0.1264,3958.8,3958.7,3.32]
[1761291547093,0.2317,3958.9,3958.1,0.2188]
[1761291547383,4.61867499,3959.3,3958.3,2.52633706]
[1761291547695,4.61867499,3959.3,3957.3,2.0192]
[1761291547696,1.5552,3956.5,3956.3,0.39535517]
[1761291547996,0.846565,3956.4,3955.1,3.375]
[1761291548148,0.846565,3956.4,3955.1,3.5938]
[1761291548351,0.537365,3956.4,3955.7,2.289]
[1761291548551,0.1001,3957.5,3956.1,0.2188]
[1761291548782,1.5552,3957.3,3956.2,2.653]
[1761291548984,0.53643705,3957.2,3956.3,0.33325]
[1761291549171,0.53643705,3957.3,3956.2,3.1057]
[1761291549471,0.53643705,3957.3,3956.3,0.4527]
[1761291549697,0.53643705,3957.3,3956.1,0.2188]
[1761291549698,1.5552,3957.2,3956.1,0.2188]
[1761291549857,0.53643705,3957.1,3956.2,1.416]
[1761291550179,0.1001,3957.2,3956.2,1.416]
[1761291550606,0.24360278,3957.3,3956.2,1.416]
[1761291550901,0.001,3959.3,3957.9,1.5552]
[1761291551048,0.001,3959.3,3958.0,8.51219691]
[1761291551243,0.001,3959.3,3958.0,7.36104197]
[1761291551471,0.001,3959.3,3958.5,2.52616789]
[1761291551670,0.001,3959.3,3958.8,2.52599831]
[1761291552083,0.001,3959.3,3958.1,0.4527]
[1761291552084,0.001,3959.3,3958.9,3.421]
[1761291553080,0.001,3959.3,3959.0,3.42]
[1761291553274,0.001,3959.3,3959.1,3.42]
[1761291553785,0.001,3959.3,3959.2,3.417]
[1761291554003,0.001,3959.3,3959.2,3.416]
[1761291554512,0.001,3959.3,3958.6,2.52611481]
[1761291554712,0.001,3959.3,3958.9,2.52594729]
[1761291554913,0.001,3959.3,3958.5,0.4527]
[1761291555210,0.001,3959.3,3958.8,2.52601661]
[1761291555407,0.001,3959.3,3958.9,2.52592943]
[1761291555798,0.001,3959.3,3958.6,2.5261161]
[1761291555986,0.001,3959.3,3958.5,0.4527]
[1761291556190,0.001,3959.3,3958.6,3.411]
[1761291556488,0.001,3959.3,3958.8,2.52599869]
[1761291556695,0.001,3959.3,3958.9,2.52594302]
[1761291557315,0.001,3959.3,3958.1,0.4527]
[1761291557513,0.001,3959.3,3957.9,0.42091625]
[1761291557514,0.1,3959.3,3958.6,2.52613223]
[1761291559600,0.001,3959.3,3958.8,3.408]
[1761291560236,0.001,3959.3,3958.8,5.93400614]
[1761291560621,0.099,3959.2,3958.8,3.408]
[1761291560830,0.099,3959.2,3958.9,3.402]
[1761291561029,0.001,3959.3,3959.0,2.52587331]
[1761291561251,0.001,3959.3,3958.9,3.8547]
[1761291561555,0.001,3959.3,3958.9,3.402]
[1761291561860,0.001,3959.3,3958.9,5.92794286]
[1761291562064,0.001,3959.3,3959.0,3.401]
[1761291562727,0.001,3959.3,3959.0,5.92688113]
[1761291562922,0.001,3959.3,3958.9,2.52594584]
[1761291563136,0.001,3959.3,3959.0,3.399]
[1761291564024,0.001,3959.3,3958.8,2.5260056]
[1761291564229,0.001,3959.3,3958.9,3.399]
[1761291565560,0.001,3959.3,3958.9,5.92490053]
[1761291565742,0.001,3959.3,3959.2,2.52576278]
[1761291565918,0.001,3959.3,3959.2,3.38230906]
[1761291566119,0.001,3959.3,3959.2,4.25592531]
[1761291566569,0.001,3959.3,3959.2,6.77530906]
[1761291566923,0.001,3959.3,3959.2,3.8457]
[1761291567157,0.001,3959.3,3959.2,6.37146278]
[1761291567334,0.1274,3959.3,3959.2,6.37146278]
[1761291573734,0.1274,3959.3,3959.2,6.35946278]
[1761291574774,0.001,3959.3,3959.2,6.35946278]
[1761291574990,0.001,3959.3,3959.2,7.24799761]
[1761291576784,0.001,3959.3,3959.2,3.86699761]
[1761291576965,0.001,3959.3,3959.2,7.24199761]
[1761291577347,0.001,3959.3,3958.7,0.2188]
[1761291577676,0.001,3959.3,3959.0,2.52583625]
[1761291577677,0.1264,3959.1,3959.0,2.52583625]
[1761291577876,0.1264,3959.1,3959.0,5.89983625]
[1761291579547,0.1264,3959.1,3959.0,6.37033625]
[1761291581043,0.001,3959.3,3959.2,2.52576278]
[1761291581245,0.1274,3959.3,3959.2,2.52576278]
[1761291581645,0.1274,3959.3,3959.2,5.89276278]
[1761291582890,0.1274,3959.3,3959.2,6.36326278]
[1761291583855,0.1274,3959.3,3959.2,5.89276278]
[1761291584055,0.1274,3959.3,3959.2,6.67006748]
[1761291584255,0.001,3959.3,3959.2,6.67006748]
[1761291584480,0.001,3959.3,3959.2,7.06431706]
[1761291584662,0.001,3959.3,3959.2,3.22681706]
[1761291584861,0.001,3959.3,3959.2,5.88876278]
[1761291585853,0.001,3959.3,3959.0,0.39424958]
[1761291586091,0.1154,3959.2,3959.1,3.36]
[1761291586385,1.6706,3959.2,3959.1,3.36]
[1761291586592,4.86085526,3959.2,3959.1,3.384]
[1761291586891,5.62150906,3959.2,3959.1,3.384]
[1761291588493,5.62150906,3959.2,3959.1,3.38]
[1761291588986,3.09573032,3959.2,3959.1,3.38]
[1761291589193,0.77987652,3959.2,3959.1,3.38]
[1761291589692,0.2418,3959.2,3959.1,3.38]
[1761291590078,0.77987652,3959.2,3959.1,3.38]
[1761291590574,0.2418,3959.2,3959.1,3.38]
[1761291590981,0.2418,3959.2,3958.2,0.4705]
[1761291591186,0.1264,3958.6,3958.4,2.52627049]
[1761291591402,0.1264,3958.5,3958.4,2.52627049]
[1761291592403,0.1264,3958.5,3958.4,3.377]
[1761291593005,0.1264,3958.5,3958.3,2.52632696]
[1761291593207,0.1264,3958.5,3958.4,3.374]
[1761291593411,0.1264,3958.5,3958.4,5.90027324]
[1761291593707,0.2391,3958.5,3958.4,2.52627324]
[1761291593874,0.1264,3958.5,3958.4,5.90027324]
[1761291594675,0.1264,3958.5,3958.4,3.374]
[1761291595075,0.1264,3958.5,3958.4,3.373]
[1761291595675,0.1264,3958.5,3958.4,5.89927324]
[1761291596198,0.1264,3958.5,3958.4,3.371]
[1761291596795,0.1264,3958.5,3958.3,2.52632995]
[1761291596997,0.1264,3958.5,3958.1,0.2282]
[1761291597177,0.2201,3958.7,3958.2,3.367]
[1761291597734,0.1264,3958.3,3958.2,3.367]
[1761291598732,0.1264,3958.3,3958.2,5.89335354]
[1761291599134,0.1264,3958.3,3958.2,3.367]
[1761291599335,0.1264,3958.3,3958.2,5.89340088]
[1761291599939,0.1264,3958.3,3958.2,5.88940088]
[1761291600309,0.1256,3958.3,3958.0,2.52646626]
[1761291600539,0.1256,3958.3,3957.9,0.002]
[1761291600540,0.1264,3958.1,3957.9,0.002]
[1761291600737,0.1264,3958.1,3958.0,3.362]
[1761291601538,0.2391,3958.1,3958.0,3.361]
[1761291601841,0.2391,3958.1,3957.9,0.002]
[1761291602012,4.20808141,3958.1,3958.0,3.36]
[1761291602211,5.47179785,3958.1,3958.0,3.36]
[1761291602411,4.93518665,3958.1,3958.0,3.36]
[1761291602608,3.49268665,3958.1,3957.9,0.002]
[1761291602808,3.37998665,3958.1,3958.0,3.359]
[1761291603014,1.5552,3958.0,3957.9,0.002]
[1761291603254,1.5552,3958.0,3957.9,3.36]
[1761291603255,2.16141867,3958.0,3957.9,3.36]
[1761291604038,4.68794721,3958.0,3957.9,0.002]
[1761291604243,0.60621867,3958.0,3957.9,3.36]
[1761291604451,2.16141867,3958.0,3957.9,3.36]
[1761291604951,2.16141867,3958.0,3957.9,0.002]
[1761291605149,4.68794721,3958.0,3957.9,3.359]
[1761291606146,4.68794721,3958.0,3957.9,0.002]
[1761291606452,2.16141867,3958.0,3957.9,3.357]
[1761291607022,2.16141867,3958.0,3957.9,0.002]
[1761291607355,2.16141867,3958.0,3957.9,3.356]
[1761291609154,2.16141867,3958.0,3957.9,0.002]
[1761291609333,2.16141867,3958.0,3957.9,3.354]
[1761291610555,2.16141867,3958.0,3957.9,3.353]
[1761291611057,2.16141867,3958.0,3957.9,3.351]
[1761291611251,4.68794721,3958.0,3957.9,3.351]
[1761291611454,5.22389204,3958.0,3957.9,0.002]
[1761291611661,4.68794721,3958.0,3957.9,3.349]
[1761291613255,4.68794721,3958.0,3957.9,0.002]
[1761291613457,4.68794721,3958.0,3957.9,3.348]
[1761291613969,2.16141867,3958.0,3957.9,3.348]
[1761291614271,4.68794721,3958.0,3957.9,0.002]
[1761291614469,4.68794721,3958.0,3957.9,3.345]
[1761291614647,2.04871867,3958.0,3957.9,3.345]
[1761291614852,1.5552,3958.0,3957.9,3.345]
[1761291615366,2.0919601,3958.0,3957.9,3.345]
[1761291615867,1.6816,3958.0,3957.9,3.7922]
[1761291616097,1.6816,3958.0,3957.9,0.002]
[1761291616268,1.6816,3958.0,3957.9,3.343]
[1761291616469,0.1264,3958.0,3957.9,3.343]
[1761291617170,0.1264,3958.0,3957.9,3.7902]
[1761291617674,0.1264,3958.0,3957.9,3.343]
[1761291618640,0.53686853,3958.3,3957.9,3.7902]
[1761291618871,0.1264,3958.0,3957.9,3.7902]
[1761291619177,0.1264,3958.0,3957.9,3.7862]
[1761291619964,0.1264,3958.0,3957.9,6.31279238]
[1761291620167,0.1264,3958.0,3957.9,2.97579238]
[1761291620364,0.1264,3958.0,3957.9,6.31179238]
[1761291621686,0.1264,3958.0,3957.9,6.30979238]
[1761291621865,0.1264,3958.0,3957.9,0.002]
[1761291622053,0.1264,3958.0,3957.9,3.336]
[1761291622252,0.1264,3958.0,3957.9,5.86259238]
[1761291622586,0.1264,3958.0,3957.9,6.30979238]
[1761291623354,0.1264,3958.0,3957.9,7.1934411]
[1761291623553,0.1264,3958.0,3957.9,3.8594411]
[1761291623778,0.1264,3958.0,3957.9,2.52859238]
[1761291624090,0.1264,3958.0,3957.9,6.30779238]
[1761291624291,0.1256,3958.0,3957.9,6.30779238]
[1761291625781,0.001,3958.3,3958.1,2.52644649]
[1761291625961,0.001,3958.3,3958.2,0.2154]
[1761291626162,0.001,3958.3,3958.2,0.6626]
[1761291626493,0.1274,3958.3,3958.2,0.6626]
[1761291627190,0.1274,3958.3,3957.9,2.52853512]
[1761291627399,0.001,3958.3,3958.2,3.329]
[1761291627902,0.1274,3958.3,3958.2,0.4724]
[1761291628116,0.1274,3958.3,3958.2,3.7994]
[1761291628920,0.1274,3958.3,3958.2,6.32580088]
[1761291629115,0.1274,3958.3,3958.2,3.7994]
[1761291629406,0.1274,3958.3,3958.2,6.32580088]
[1761291629826,0.1274,3958.3,3958.2,7.23417346]
[1761291630103,0.1274,3958.3,3958.2,7.60342304]
[1761291630294,0.001,3958.3,3958.2,7.60342304]
[1761291630895,0.001,3958.3,3958.2,8.00364202]
[1761291632104,0.001,3958.3,3958.2,9.55884202]
[1761291632507,0.001,3958.3,3958.2,10.06572202]
[1761291632894,0.001,3958.3,3958.2,5.35922304]
[1761291633093,0.001,3958.3,3958.2,11.02412304]
[1761291633904,0.001,3958.3,3958.2,11.53100304]
[1761291634812,0.001,3958.3,3958.2,11.90563869]
[1761291635028,0.001,3958.3,3958.2,6.69163869]
[1761291635427,0.001,3958.3,3958.2,11.90263869]
[1761291636030,0.001,3958.3,3958.2,6.69163869]
[1761291636227,0.001,3958.3,3958.2,11.90163869]
[1761291636726,0.001,3958.3,3958.2,9.38865869]
[1761291636895,0.001,3958.3,3958.2,10.34643869]
[1761291637101,0.001,3958.3,3958.2,9.83855869]
[1761291637302,0.001,3958.3,3958.2,9.83755869]
[1761291639224,0.001,3958.3,3958.2,4.62955869]
[1761291639424,0.001,3958.3,3958.2,9.45992304]
[1761291640714,0.1012,3958.3,3958.2,5.83740088]
[1761291640921,0.001,3958.3,3958.2,5.83740088]
[1761291641741,0.001,3958.3,3958.2,2.52640088]
[1761291641903,0.001,3958.3,3958.2,5.83740088]
[1761291642338,0.001,3958.3,3958.2,3.311]
[1761291642546,0.10208399,3958.3,3958.2,5.83740088]
[1761291642853,0.22848399,3958.3,3958.2,5.83740088]
[1761291643342,0.22848399,3958.3,3958.2,5.83640088]
[1761291644048,0.32868399,3958.3,3958.2,5.83640088]
[1761291644254,0.22848399,3958.3,3958.2,2.52640088]
[1761291644430,0.22848399,3958.3,3958.2,5.83640088]
[1761291645347,0.22848399,3958.3,3958.2,2.52640088]
[1761291645550,0.22848399,3958.3,3958.2,5.83340088]
[1761291646132,0.22848399,3958.3,3958.2,2.52640088]
[1761291646449,0.22848399,3958.3,3958.2,5.83340088]
[1761291646754,0.22848399,3958.3,3958.2,3.307]
[1761291646952,0.22848399,3958.3,3958.0,0.002]
[1761291647121,0.1264,3958.1,3958.0,0.002]
[1761291647316,0.1264,3958.1,3958.0,5.83352854]
[1761291647520,0.2266,3958.1,3958.0,5.83352854]
[1761291647722,0.2528,3958.1,3958.0,5.83352854]
[1761291648157,0.252,3958.1,3958.0,5.83352854]
[1761291650348,0.1256,3958.1,3958.0,5.83352854]
[1761291650931,0.1256,3958.1,3958.0,6.28442854]
[1761291651337,0.001,3958.3,3958.2,2.52640088]
[1761291652139,0.001,3958.3,3958.2,5.82640088]
[1761291655165,0.001,3958.3,3958.2,5.82440088]
[1761291655385,0.001,3958.3,3958.2,6.27530088]
[1761291655539,0.1274,3958.3,3958.2,6.99551944]
[1761291656237,0.1274,3958.3,3958.2,6.27330088]
[1761291658659,0.1274,3958.3,3958.2,5.82240088]
[1761291658860,0.1274,3958.3,3958.2,6.27330088]
[1761291659656,0.001,3958.3,3958.2,6.27330088]
[1761291660383,0.001,3958.3,3958.2,5.82240088]
[1761291660595,0.001,3958.3,3958.2,6.73682382]
[1761291660983,0.001,3958.3,3958.2,7.18262382]
[1761291661189,0.001,3958.3,3958.2,6.73682382]
[1761291661544,0.001,3958.3,3958.2,7.18262382]
[1761291661751,0.001,3958.3,3958.2,7.52820673]
[1761291662069,0.001,3958.3,3958.2,6.73082382]
[1761291662263,0.1274,3958.3,3958.2,5.81640088]
[1761291662863,0.1274,3958.3,3958.2,6.26220088]
[1761291663779,0.1274,3958.3,3958.2,2.52640088]
[1761291664283,0.1274,3958.3,3958.2,5.81340088]
[1761291665385,0.1274,3958.3,3958.2,2.52640088]
[1761291665684,0.1274,3958.3,3958.2,5.81240088]
[1761291666447,0.1274,3958.3,3958.2,6.25820088]
[1761291666649,0.1274,3958.3,3958.2,6.74737211]
[1761291666850,0.1274,3958.3,3958.2,7.19317211]
[1761291668086,0.001,3958.3,3958.2,7.19317211]
[1761291668588,0.001,3958.3,3958.2,8.74837211]
[1761291671552,0.001,3958.3,3958.2,9.09395502]
[1761291672171,0.0002,3958.3,3958.2,9.09395502]
[1761291674790,0.0002,3958.3,3958.2,9.60083502]
[1761291678788,0.0002,3958.3,3958.2,12.53897721]
[1761291680882,0.0002,3958.3,3958.2,12.91361286]
[1761291682605,0.0002,3958.3,3958.2,14.79061286]
[1761291683914,0.0002,3958.3,3958.2,5.01657211]
[1761291684079,0.0002,3958.3,3958.2,8.28657211]
[1761291685883,0.0002,3958.3,3958.2,11.2247143]
[1761291687227,0.0002,3958.3,3958.2,11.2217143]
[1761291688708,0.0002,3958.3,3958.2,12.02119721]
[1761291689309,0.0002,3958.3,3958.2,11.56729721]
[1761291690116,0.0002,3958.3,3958.2,11.56529721]
[1761291690842,0.0002,3958.3,3958.2,3.46137211]
[1761291691048,0.0002,3958.3,3958.2,5.78940088]
[1761291693144,0.1067,3958.3,3958.1,0.002]
[1761291693303,0.1067,3958.3,3958.2,3.263]
[1761291693502,0.1264,3958.2,3958.1,2.52844695]
[1761291693729,0.1264,3958.2,3958.1,5.79144695]
[1761291693945,0.2329,3958.2,3958.1,5.79144695]
[1761291694142,0.2329,3958.2,3958.1,0.002]
[1761291694344,0.2329,3958.2,3958.1,3.265]
[1761291695734,0.2329,3958.2,3958.1,0.002]
[1761291695934,0.2329,3958.2,3958.1,3.265]
[1761291696446,0.2321,3958.2,3958.1,3.265]
[1761291696643,0.2321,3958.2,3958.1,0.002]
[1761291696832,0.2321,3958.2,3958.1,3.265]
[1761291698337,0.77049304,3958.2,3958.1,3.265]
[1761291699855,0.77049304,3958.2,3958.1,5.79146471]
[1761291700035,0.77049304,3958.2,3958.1,3.265]
[1761291700235,0.77049304,3958.2,3958.1,0.002]
[1761291700454,0.77049304,3958.2,3958.1,3.265]
[1761291700966,0.66399304,3958.2,3958.1,3.265]
[1761291701122,0.66399304,3958.2,3958.1,5.79146471]
[1761291701123,0.2329,3958.2,3958.1,5.79146471]
[1761291702150,0.2339,3958.2,3958.1,5.79146471]
[1761291702966,0.1274,3958.2,3958.1,5.79146471]
[1761291707562,0.1274,3958.2,3958.1,6.66871015]
[1761291707738,0.001,3958.2,3958.1,7.84132871]
[1761291708477,0.001,3958.2,3958.1,8.07502871]
[1761291712386,0.001,3958.2,3958.1,4.81202871]
[1761291712604,0.001,3958.2,3958.1,8.07502871]
[1761291712809,0.001,3958.2,3958.1,7.38892871]
[1761291713097,0.001,3958.2,3958.1,10.3270709]
[1761291714185,0.001,3958.2,3958.1,4.12592871]
[1761291714486,0.1096,3958.2,3958.1,5.79146471]
[1761291715193,0.001,3958.2,3958.1,5.79146471]
[1761291715508,0.001,3958.2,3958.1,2.87404762]
[1761291715660,0.001,3958.2,3958.1,6.13704762]
[1761291715978,0.001,3958.2,3958.1,9.07518981]
[1761291720030,0.001,3958.2,3958.1,5.81218981]
[1761291720235,0.0002,3958.2,3958.1,9.07518981]
[1761291721010,0.0002,3958.2,3958.1,5.81218981]
[1761291721375,0.0002,3958.2,3958.1,9.07518981]
[1761291721540,0.1088,3958.2,3958.1,0.002]
[1761291721739,0.1088,3958.2,3958.1,3.265]
[1761291721740,0.2352,3958.2,3958.1,3.265]
[1761291722294,0.56515089,3958.2,3958.1,3.265]
[1761291723138,0.56515089,3958.2,3958.1,0.002]
[1761291723451,0.56515089,3958.2,3958.1,3.265]
[1761291723748,3.09155177,3958.2,3958.1,3.265]
[1761291723952,0.56515089,3958.2,3958.1,3.265]
[1761291725476,0.56515089,3958.2,3958.1,0.002]
[1761291725660,0.56515089,3958.2,3958.1,3.265]
[1761291726227,0.2352,3958.2,3958.1,3.265]
[1761291728141,0.1088,3958.2,3958.1,3.265]
[1761291729829,0.1088,3958.2,3958.1,3.264]
[1761291731560,0.2352,3958.2,3958.1,3.264]
[1761291733971,0.1266,3958.2,3958.1,3.264]
[1761291734341,0.2352,3958.2,3958.1,3.264]
[1761291737572,0.2352,3958.2,3958.1,0.002]
[1761291737876,4.08982469,3958.2,3958.1,3.264]
[1761291738055,4.05745926,3958.2,3958.1,3.264]
[1761291739945,1.53105838,3958.2,3958.1,3.264]
[1761291740755,1.29605838,3958.2,3958.1,3.264]
[1761291741072,1.53105838,3958.2,3958.1,3.264]
[1761291741276,1.93681816,3958.2,3958.1,0.002]
[1761291741574,4.46321904,3958.2,3958.1,3.264]
[1761291742079,4.46321904,3958.2,3958.1,0.002]
[1761291742376,4.46321904,3958.2,3958.1,3.264]
[1761291742748,4.46321904,3958.2,3958.1,0.002]
[1761291742955,6.01841904,3958.2,3958.1,1.705]
[1761291743155,6.01841904,3958.2,3958.1,0.002]
[1761291744279,6.01761904,3958.2,3958.1,0.002]
[1761291748678,5.89121904,3958.2,3958.1,0.002]
[1761291750371,6.39809904,3958.2,3958.1,0.002]
[1761291750554,7.74124779,3958.2,3958.1,0.002]
[1761291751255,6.39809904,3958.2,3958.1,0.002]
[1761291751457,7.74124779,3958.2,3958.1,0.002]
[1761291752288,6.39809904,3958.2,3958.1,0.002]
[1761291753456,7.74124779,3958.2,3958.1,0.002]
[1761291755266,6.39809904,3958.2,3958.1,0.002]
[1761291758194,4.69714471,3958.1,3958.0,1e-08]
[1761291758494,6.94062578,3958.1,3958.0,1e-08]
[1761291758698,7.06702578,3958.1,3958.0,1e-08]
[1761291758877,7.30192578,3958.1,3958.0,1e-08]
[1761291759282,8.64333236,3958.1,3958.0,1e-08]
[1761291759478,7.30192578,3958.1,3958.0,1e-08]
[1761291759796,7.17552578,3958.1,3958.0,1e-08]
[1761291761300,7.17552578,3958.1,3956.1,0.7089]
[1761291761301,1.5552,3956.1,3955.1,0.2349]
[1761291761502,0.53616335,3956.1,3955.8,0.474]
[1761291761794,2.09136335,3956.3,3955.3,2.52825179]
[1761291761995,4.84165291,3956.1,3955.7,0.474]
[1761291762201,5.37781626,3956.1,3955.7,0.474]
[1761291762402,6.1683601,3956.1,3955.6,3.261]
[1761291762718,6.1683601,3956.1,3956.0,3.00980586]
[1761291762719,0.75871095,3956.1,3956.0,3.00980586]
[1761291762926,1.5552,3957.0,3956.0,0.482]
[1761291763080,0.75857282,3956.3,3956.1,3.2365941]
[1761291763422,2.5273125,3956.8,3956.2,3.735]
[1761291763577,0.7585498,3956.7,3956.2,3.735]
[1761291763928,0.7585498,3956.7,3956.2,0.474]
[1761291763929,2.3137498,3956.7,3956.2,0.474]
[1761291764080,1.49537554,3956.7,3956.1,0.2349]
[1761291764280,2.52729928,3956.8,3956.2,3.261]
[1761291764592,0.75857282,3956.6,3956.2,3.261]
[1761291764912,0.75857282,3956.6,3956.2,3.735]
[1761291765223,0.75857282,3956.6,3956.3,0.474]
[1761291766220,0.75857282,3956.6,3956.4,3.261]
[1761291766829,0.75857282,3956.6,3956.5,3.261]
[1761291767639,0.75857282,3956.6,3956.5,3.735]
[1761291768126,0.75777282,3956.6,3956.5,3.735]
[1761291769665,0.88417282,3956.6,3956.5,3.735]
[1761291773120,0.88417282,3956.6,3956.5,3.261]
[1761291773609,0.88417282,3956.6,3956.5,3.735]
[1761291775574,0.88417282,3956.6,3956.5,0.474]
[1761291775904,0.88417282,3956.6,3956.5,3.735]